[Event "Titled Tuesday Blitz May 2 Early 2023"]
[White "Kukula, Pawel"]
[Black "Amitpal, Singh"]
[WhiteFideId "1115081"]
[BlackFideId "5012899"]
[WhiteElo "2012"]
[BlackElo "2107"]
[Result "1/2-1/2"]
[Round "02"]
[TimeControl "180+2"]
[Date "2023.05.02"]
[WhiteClock "0:00:26"]
[BlackClock "0:00:09"]

1. d4 {[%clk 0:02:59]}  Nf6 {[%clk 0:02:59]} 2. Nf3 {[%clk 0:02:57]}  g6 {[%clk 0:02:59]} 3. Nc3 {[%clk 0:02:57]}  Bg7 {[%clk 0:02:59]} 4. e4 {[%clk 0:02:56]}  d6 {[%clk 0:03:00]} 5. Be2 {[%clk 0:02:55]}  O-O {[%clk 0:03:00]} 6. O-O {[%clk 0:02:55]}  Nc6 {[%clk 0:03:00]} 7. d5 {[%clk 0:02:53]}  Nb8 {[%clk 0:02:59]} 8. h3 {[%clk 0:02:53]}  e5 {[%clk 0:02:58]} 9. dxe6 {[%clk 0:02:52]}  fxe6 {[%clk 0:02:57]} 10. a4 {[%clk 0:02:52]}  a5 {[%clk 0:02:56]} 11. Be3 {[%clk 0:02:49]}  Na6 {[%clk 0:02:52]} 12. Qd2 {[%clk 0:02:47]}  Qe7 {[%clk 0:02:48]} 13. e5 {[%clk 0:02:42]}  Nd7 {[%clk 0:02:38]} 14. Bg5 {[%clk 0:02:36]}  Qf7 {[%clk 0:02:28]} 15. exd6 {[%clk 0:02:35]}  cxd6 {[%clk 0:02:29]} 16. Qxd6 {[%clk 0:02:33]}  Ndc5 {[%clk 0:02:28]} 17. Bc4 {[%clk 0:02:24]}  Qf5 {[%clk 0:02:25]} 18. Qd2 {[%clk 0:02:08]}  Bd7 {[%clk 0:02:07]} 19. Rae1 {[%clk 0:01:58]}  Rae8 {[%clk 0:02:06]} 20. Be3 {[%clk 0:01:52]}  Bc6 {[%clk 0:02:04]} 21. Nd4 {[%clk 0:01:47]}  Bxd4 {[%clk 0:01:36]} 22. Bxd4 {[%clk 0:01:28]}  Rd8 {[%clk 0:01:20]} 23. Qe3 {[%clk 0:01:18]}  h5 {[%clk 0:00:30]} 24. Qe5 {[%clk 0:01:10]}  Qxe5 {[%clk 0:00:25]} 25. Bxe5 {[%clk 0:01:11]}  Kf7 {[%clk 0:00:18]} 26. Rd1 {[%clk 0:01:00]}  Ke7 {[%clk 0:00:13]} 27. Nb5 {[%clk 0:00:52]}  Bd5 {[%clk 0:00:11]} 28. Bxd5 {[%clk 0:00:47]}  Rxd5 {[%clk 0:00:12]} 29. Rxd5 {[%clk 0:00:42]}  exd5 {[%clk 0:00:13]} 30. Re1 {[%clk 0:00:42]}  Kd7 {[%clk 0:00:10]} 31. f3 {[%clk 0:00:40]}  Re8 {[%clk 0:00:10]} 32. Bg3 {[%clk 0:00:40]}  Rxe1+ {[%clk 0:00:09]} 33. Bxe1 {[%clk 0:00:41]}  Ke6 {[%clk 0:00:08]} 34. Bxa5 {[%clk 0:00:39]}  Nxa4 {[%clk 0:00:08]} 35. b3 {[%clk 0:00:35]}  N4c5 {[%clk 0:00:08]} 36. Bd2 {[%clk 0:00:34]}  Ke5 {[%clk 0:00:07]} 37. Kf2 {[%clk 0:00:34]}  d4 {[%clk 0:00:07]} 38. Bh6 {[%clk 0:00:32]}  Kd5 {[%clk 0:00:08]} 39. Bg7 {[%clk 0:00:32]}  Ne6 {[%clk 0:00:08]} 40. Na3 {[%clk 0:00:27]}  Nxg7 {[%clk 0:00:06]} 41. g4 {[%clk 0:00:27]}  Ne6 {[%clk 0:00:06]} 42. Kg3 {[%clk 0:00:27]}  hxg4 {[%clk 0:00:06]} 43. fxg4 {[%clk 0:00:27]}  Nac5 {[%clk 0:00:06]} 44. h4 {[%clk 0:00:27]}  Ne4+ {[%clk 0:00:07]} 45. Kf3 {[%clk 0:00:27]}  Nf6 {[%clk 0:00:07]} 46. Nc4 {[%clk 0:00:26]}  Ne4 {[%clk 0:00:06]} 47. Nb6+ {[%clk 0:00:25]}  Ke5 {[%clk 0:00:07]} 48. Nd7+ {[%clk 0:00:24]}  Kd6 {[%clk 0:00:06]} 49. Nb6 {[%clk 0:00:22]}  Nd2+ {[%clk 0:00:05]} 50. Kg3 {[%clk 0:00:21]}  Nf1+ {[%clk 0:00:06]} 51. Kf3 {[%clk 0:00:21]}  Ne3 {[%clk 0:00:06]} 52. c4 {[%clk 0:00:19]}  Nd1 {[%clk 0:00:05]} 53. b4 {[%clk 0:00:18]}  Nc3 {[%clk 0:00:05]} 54. c5+ {[%clk 0:00:18]}  Ke5 {[%clk 0:00:04]} 55. h5 {[%clk 0:00:19]}  gxh5 {[%clk 0:00:04]} 56. gxh5 {[%clk 0:00:20]}  d3 {[%clk 0:00:04]} 57. Ke3 {[%clk 0:00:19]}  Nf4 {[%clk 0:00:05]} 58. Nd7+ {[%clk 0:00:19]}  Kf5 {[%clk 0:00:04]} 59. h6 {[%clk 0:00:19]}  Ncd5+ {[%clk 0:00:04]} 60. Kd2 {[%clk 0:00:19]}  Kg6 {[%clk 0:00:05]} 61. b5 {[%clk 0:00:17]}  Kxh6 {[%clk 0:00:05]} 62. c6 {[%clk 0:00:18]}  bxc6 {[%clk 0:00:06]} 63. bxc6 {[%clk 0:00:19]}  Kg6 {[%clk 0:00:06]} 64. Ne5+ {[%clk 0:00:19]}  Kf5 {[%clk 0:00:06]} 65. Nxd3 {[%clk 0:00:20]}  Nxd3 {[%clk 0:00:06]} 66. Kxd3 {[%clk 0:00:21]}  Ke5 {[%clk 0:00:06]} 67. Kc4 {[%clk 0:00:22]}  Kd6 {[%clk 0:00:07]} 68. Kb5 {[%clk 0:00:23]}  Nc7+ {[%clk 0:00:08]} 69. Kb6 {[%clk 0:00:24]}  Ne6 {[%clk 0:00:07]} 70. Kb7 {[%clk 0:00:24]}  Nc7 {[%clk 0:00:08]} 71. Kb6 {[%clk 0:00:25]}  Nd5+ {[%clk 0:00:08]} 72. Kb7 {[%clk 0:00:25]}  Nc7 {[%clk 0:00:09]} 73. Kb6 {[%clk 0:00:26]} 1/2-1/2


[Site "https://www.chess.com"]

[Event "Titled Tuesday Blitz May 2 Early 2023"]
[White "Acikel, Mert"]
[Black "Ljukin, Sergei"]
[WhiteFideId "12956465"]
[BlackFideId "14102200"]
[WhiteElo "2097"]
[BlackElo "2312"]
[Result "0-1"]
[Round "02"]
[TimeControl "180+2"]
[Date "2023.05.02"]
[WhiteClock "0:00:06"]
[BlackClock "0:00:51"]

1. e4 {[%clk 0:02:59]}  e6 {[%clk 0:02:53]} 2. d4 {[%clk 0:02:57]}  d5 {[%clk 0:02:53]} 3. Nd2 {[%clk 0:02:57]}  Nf6 {[%clk 0:02:53]} 4. e5 {[%clk 0:02:57]}  Nfd7 {[%clk 0:02:53]} 5. Bd3 {[%clk 0:02:56]}  c5 {[%clk 0:02:53]} 6. c3 {[%clk 0:02:56]}  Nc6 {[%clk 0:02:54]} 7. Ne2 {[%clk 0:02:56]}  cxd4 {[%clk 0:02:54]} 8. cxd4 {[%clk 0:02:55]}  f6 {[%clk 0:02:55]} 9. exf6 {[%clk 0:02:55]}  Qxf6 {[%clk 0:02:55]} 10. Nf3 {[%clk 0:02:53]}  h6 {[%clk 0:02:55]} 11. O-O {[%clk 0:02:52]}  Bd6 {[%clk 0:02:55]} 12. Re1 {[%clk 0:02:52]}  O-O {[%clk 0:02:55]} 13. Ng3 {[%clk 0:02:51]}  Rf7 {[%clk 0:02:54]} 14. Nh5 {[%clk 0:02:48]}  Qe7 {[%clk 0:02:54]} 15. Be3 {[%clk 0:02:38]}  Nf8 {[%clk 0:02:44]} 16. Rc1 {[%clk 0:02:32]}  Bd7 {[%clk 0:02:45]} 17. a3 {[%clk 0:02:32]}  Be8 {[%clk 0:02:44]} 18. h3 {[%clk 0:02:25]}  Rd8 {[%clk 0:02:40]} 19. Ne5 {[%clk 0:02:20]}  Nxe5 {[%clk 0:02:24]} 20. dxe5 {[%clk 0:02:20]}  Bxe5 {[%clk 0:02:24]} 21. Bxa7 {[%clk 0:02:20]}  Bxb2 {[%clk 0:02:21]} 22. Rb1 {[%clk 0:02:18]}  Bxa3 {[%clk 0:02:20]} 23. Qg4 {[%clk 0:02:03]}  Bc5 {[%clk 0:02:05]} 24. Bxc5 {[%clk 0:01:44]}  Qxc5 {[%clk 0:02:05]} 25. Nf4 {[%clk 0:01:37]}  Qd4 {[%clk 0:01:48]} 26. Nxe6 {[%clk 0:01:10]}  Nxe6 {[%clk 0:01:48]} 27. Bg6 {[%clk 0:00:43]}  Qxg4 {[%clk 0:01:15]} 28. Bxf7+ {[%clk 0:00:43]}  Bxf7 {[%clk 0:01:15]} 29. hxg4 {[%clk 0:00:44]}  Rd7 {[%clk 0:01:11]} 30. Rb6 {[%clk 0:00:39]}  d4 {[%clk 0:00:53]} 31. Rbxe6 {[%clk 0:00:05]}  Bxe6 {[%clk 0:00:53]} 32. Rxe6 {[%clk 0:00:06]}  d3 {[%clk 0:00:53]} 33. Re1 {[%clk 0:00:06]}  d2 {[%clk 0:00:54]} 34. Rd1 {[%clk 0:00:06]}  Kf7 {[%clk 0:00:54]} 35. Kf1 {[%clk 0:00:06]}  Kf6 {[%clk 0:00:51]} 0-1


[Site "https://www.chess.com"]

[Event "Titled Tuesday Blitz May 2 Early 2023"]
[White "Vargas Rodriguez, Wilver"]
[Black "Sai Han Thiha"]
[WhiteFideId "3509672"]
[BlackFideId "13012290"]
[WhiteElo "2224"]
[BlackElo "1954"]
[Result "0-1"]
[Round "02"]
[TimeControl "180+2"]
[Date "2023.05.02"]
[WhiteClock "0:00:01"]
[BlackClock "0:00:15"]

1. e4 {[%clk 0:03:00]}  c6 {[%clk 0:03:00]} 2. Nc3 {[%clk 0:02:57]}  d5 {[%clk 0:03:01]} 3. Nf3 {[%clk 0:02:53]}  Bg4 {[%clk 0:03:01]} 4. d3 {[%clk 0:02:40]}  d4 {[%clk 0:02:51]} 5. Ne2 {[%clk 0:02:15]}  Bxf3 {[%clk 0:02:46]} 6. gxf3 {[%clk 0:02:15]}  c5 {[%clk 0:02:42]} 7. f4 {[%clk 0:02:13]}  Nc6 {[%clk 0:02:42]} 8. Ng3 {[%clk 0:02:11]}  e6 {[%clk 0:02:40]} 9. Bg2 {[%clk 0:02:07]}  g6 {[%clk 0:02:39]} 10. Qe2 {[%clk 0:01:45]}  Bd6 {[%clk 0:02:15]} 11. e5 {[%clk 0:01:25]}  Be7 {[%clk 0:02:15]} 12. Ne4 {[%clk 0:01:09]}  Nh6 {[%clk 0:02:08]} 13. Bd2 {[%clk 0:00:39]}  Nf5 {[%clk 0:02:06]} 14. O-O-O {[%clk 0:00:37]}  Rc8 {[%clk 0:01:58]} 15. Kb1 {[%clk 0:00:36]}  Nb4 {[%clk 0:01:47]} 16. c3 {[%clk 0:00:34]}  dxc3 {[%clk 0:01:36]} 17. Bxc3 {[%clk 0:00:33]}  Nd5 {[%clk 0:01:36]} 18. Qc2 {[%clk 0:00:19]}  Nxf4 {[%clk 0:01:32]} 19. Rhg1 {[%clk 0:00:12]}  b5 {[%clk 0:01:26]} 20. Nd6+ {[%clk 0:00:08]}  Kf8 {[%clk 0:00:38]} 21. Nxf5 {[%clk 0:00:07]}  gxf5 {[%clk 0:00:35]} 22. Bd2 {[%clk 0:00:06]}  Ng6 {[%clk 0:00:29]} 23. Bh6+ {[%clk 0:00:06]}  Kg8 {[%clk 0:00:25]} 24. Bf3 {[%clk 0:00:06]}  Bf8 {[%clk 0:00:24]} 25. Bg5 {[%clk 0:00:05]}  Be7 {[%clk 0:00:24]} 26. Bf6 {[%clk 0:00:06]}  Bxf6 {[%clk 0:00:24]} 27. exf6 {[%clk 0:00:07]}  Qxf6 {[%clk 0:00:25]} 28. Bh5 {[%clk 0:00:07]}  Kg7 {[%clk 0:00:25]} 29. h4 {[%clk 0:00:06]}  Qxh4 {[%clk 0:00:23]} 30. f4 {[%clk 0:00:05]}  Qxh5 {[%clk 0:00:22]} 31. Qc3+ {[%clk 0:00:05]}  f6 {[%clk 0:00:20]} 32. Qa5 {[%clk 0:00:04]}  Rhf8 {[%clk 0:00:18]} 33. Qxa7+ {[%clk 0:00:04]}  Rf7 {[%clk 0:00:19]} 34. Qb6 {[%clk 0:00:05]}  Qe2 {[%clk 0:00:18]} 35. Qxe6 {[%clk 0:00:04]}  Qxe6 {[%clk 0:00:17]} 36. Rde1 {[%clk 0:00:03]}  Qd5 {[%clk 0:00:18]} 37. Rd1 {[%clk 0:00:03]}  Ra8 {[%clk 0:00:18]} 38. b3 {[%clk 0:00:03]}  Qd4 {[%clk 0:00:17]} 39. Rg2 {[%clk 0:00:02]}  Re7 {[%clk 0:00:15]} 40. Rh1 {[%clk 0:00:02]}  Qxd3+ {[%clk 0:00:15]} 41. Ka1 {[%clk 0:00:02]}  Qd4+ {[%clk 0:00:15]} 42. Kb1 {[%clk 0:00:01]}  Qe4+ {[%clk 0:00:15]} 0-1


[Site "https://www.chess.com"]

[Event "Titled Tuesday Blitz May 2 Early 2023"]
[White "Davtyan, David Arm."]
[Black "Cramling Bellon, Anna"]
[WhiteFideId "13310046"]
[BlackFideId "32009232"]
[WhiteElo "2274"]
[BlackElo "1972"]
[Result "1-0"]
[Round "02"]
[TimeControl "180+2"]
[Date "2023.05.02"]
[WhiteClock "0:00:40"]
[BlackClock "0:00:01"]

1. e4 {[%clk 0:03:00]}  c5 {[%clk 0:02:58]} 2. Nc3 {[%clk 0:02:51]}  Nc6 {[%clk 0:02:56]} 3. g3 {[%clk 0:02:52]}  g6 {[%clk 0:02:55]} 4. Bg2 {[%clk 0:02:53]}  Bg7 {[%clk 0:02:55]} 5. d3 {[%clk 0:02:54]}  d6 {[%clk 0:02:55]} 6. Be3 {[%clk 0:02:54]}  e5 {[%clk 0:02:55]} 7. Qd2 {[%clk 0:02:55]}  Nd4 {[%clk 0:02:55]} 8. Nd1 {[%clk 0:02:54]}  Ne7 {[%clk 0:02:54]} 9. c3 {[%clk 0:02:55]}  Ndc6 {[%clk 0:02:55]} 10. Bh6 {[%clk 0:02:55]}  O-O {[%clk 0:02:55]} 11. h4 {[%clk 0:02:54]}  Bxh6 {[%clk 0:02:55]} 12. Qxh6 {[%clk 0:02:54]}  f6 {[%clk 0:02:56]} 13. Qd2 {[%clk 0:02:53]}  Be6 {[%clk 0:02:48]} 14. Ne2 {[%clk 0:02:53]}  d5 {[%clk 0:02:48]} 15. h5 {[%clk 0:02:50]}  g5 {[%clk 0:02:47]} 16. f4 {[%clk 0:02:47]}  dxe4 {[%clk 0:02:41]} 17. Bxe4 {[%clk 0:02:46]}  f5 {[%clk 0:02:33]} 18. Bg2 {[%clk 0:02:40]}  exf4 {[%clk 0:02:19]} 19. gxf4 {[%clk 0:02:39]}  g4 {[%clk 0:02:20]} 20. Ne3 {[%clk 0:02:38]}  Nd5 {[%clk 0:02:15]} 21. O-O-O {[%clk 0:02:26]}  Nxe3 {[%clk 0:02:05]} 22. Qxe3 {[%clk 0:02:27]}  Bxa2 {[%clk 0:02:05]} 23. Qxc5 {[%clk 0:02:17]}  Qb6 {[%clk 0:01:55]} 24. Qxb6 {[%clk 0:01:55]}  axb6 {[%clk 0:01:56]} 25. Kc2 {[%clk 0:01:53]}  Rfe8 {[%clk 0:01:32]} 26. Rhe1 {[%clk 0:01:45]}  Na5 {[%clk 0:01:28]} 27. Nd4 {[%clk 0:01:41]}  Bf7 {[%clk 0:01:09]} 28. b4 {[%clk 0:01:29]}  Nb3 {[%clk 0:00:50]} 29. Rxe8+ {[%clk 0:01:13]}  Rxe8 {[%clk 0:00:49]} 30. Nxb3 {[%clk 0:00:58]}  Re2+ {[%clk 0:00:49]} 31. Nd2 {[%clk 0:00:57]}  Rxg2 {[%clk 0:00:48]} 32. Re1 {[%clk 0:00:53]}  g3 {[%clk 0:00:43]} 33. Re5 {[%clk 0:00:51]}  Bxh5 {[%clk 0:00:11]} 34. Rxf5 {[%clk 0:00:49]}  Bg6 {[%clk 0:00:12]} 35. Rg5 {[%clk 0:00:49]}  Kf7 {[%clk 0:00:05]} 36. f5 {[%clk 0:00:40]}  Kf6 {[%clk 0:00:05]} 37. fxg6 {[%clk 0:00:40]}  Kxg5 {[%clk 0:00:02]} 38. g7 {[%clk 0:00:40]}  Kh6 {[%clk 0:00:01]} 39. g8=Q {[%clk 0:00:40]} 1-0


[Site "https://www.chess.com"]

[Event "Titled Tuesday Blitz May 2 Early 2023"]
[White "Hartikainen, Jarmo"]
[Black "Pourkashiyan, Atousa"]
[WhiteFideId "503134"]
[BlackFideId "12502014"]
[WhiteElo "2108"]
[BlackElo "2228"]
[Result "0-1"]
[Round "02"]
[TimeControl "180+2"]
[Date "2023.05.02"]
[WhiteClock "0:00:01"]
[BlackClock "0:00:05"]

1. e4 {[%clk 0:03:00]}  c5 {[%clk 0:02:49]} 2. c3 {[%clk 0:03:00]}  Nf6 {[%clk 0:02:45]} 3. e5 {[%clk 0:02:59]}  Nd5 {[%clk 0:02:46]} 4. d4 {[%clk 0:02:59]}  cxd4 {[%clk 0:02:46]} 5. Nf3 {[%clk 0:02:59]}  e6 {[%clk 0:02:47]} 6. cxd4 {[%clk 0:02:59]}  d6 {[%clk 0:02:48]} 7. Nc3 {[%clk 0:02:59]}  Nxc3 {[%clk 0:02:44]} 8. bxc3 {[%clk 0:02:59]}  Qc7 {[%clk 0:02:45]} 9. Bd2 {[%clk 0:02:56]}  Nd7 {[%clk 0:02:44]} 10. exd6 {[%clk 0:02:50]}  Bxd6 {[%clk 0:02:45]} 11. Bd3 {[%clk 0:02:50]}  h6 {[%clk 0:02:33]} 12. Qe2 {[%clk 0:02:49]}  b6 {[%clk 0:02:13]} 13. Be4 {[%clk 0:02:15]}  Bb7 {[%clk 0:02:05]} 14. Bxb7 {[%clk 0:02:08]}  Qxb7 {[%clk 0:02:05]} 15. a4 {[%clk 0:02:08]}  O-O {[%clk 0:02:02]} 16. O-O {[%clk 0:02:07]}  Rac8 {[%clk 0:01:58]} 17. Rfb1 {[%clk 0:02:06]}  Qc6 {[%clk 0:01:45]} 18. a5 {[%clk 0:02:04]}  Qc4 {[%clk 0:01:35]} 19. Qxc4 {[%clk 0:01:59]}  Rxc4 {[%clk 0:01:32]} 20. axb6 {[%clk 0:02:00]}  axb6 {[%clk 0:01:33]} 21. Ra7 {[%clk 0:01:58]}  Rd8 {[%clk 0:01:30]} 22. Rba1 {[%clk 0:01:32]}  Kf8 {[%clk 0:01:07]} 23. Ra8 {[%clk 0:01:31]}  Rcc8 {[%clk 0:01:03]} 24. Rxc8 {[%clk 0:01:30]}  Rxc8 {[%clk 0:01:04]} 25. Ra6 {[%clk 0:01:23]}  Ke7 {[%clk 0:00:59]} 26. g3 {[%clk 0:01:23]}  Rb8 {[%clk 0:00:45]} 27. Ra7 {[%clk 0:01:19]}  b5 {[%clk 0:00:42]} 28. Kf1 {[%clk 0:01:15]}  Ke8 {[%clk 0:00:37]} 29. Ke2 {[%clk 0:01:12]}  b4 {[%clk 0:00:36]} 30. cxb4 {[%clk 0:01:09]}  Bxb4 {[%clk 0:00:36]} 31. Bf4 {[%clk 0:01:01]}  Rc8 {[%clk 0:00:32]} 32. Ne5 {[%clk 0:00:53]}  Nxe5 {[%clk 0:00:22]} 33. Bxe5 {[%clk 0:00:53]}  Kf8 {[%clk 0:00:19]} 34. Rb7 {[%clk 0:00:48]}  Ba3 {[%clk 0:00:17]} 35. Rb8 {[%clk 0:00:48]}  Rxb8 {[%clk 0:00:16]} 36. Bxb8 {[%clk 0:00:48]}  Ke7 {[%clk 0:00:16]} 37. Kd3 {[%clk 0:00:45]}  Bb4 {[%clk 0:00:13]} 38. f3 {[%clk 0:00:45]}  Be1 {[%clk 0:00:13]} 39. g4 {[%clk 0:00:44]}  g6 {[%clk 0:00:10]} 40. h3 {[%clk 0:00:43]}  h5 {[%clk 0:00:10]} 41. Ba7 {[%clk 0:00:40]}  Bf2 {[%clk 0:00:10]} 42. Bc5+ {[%clk 0:00:38]}  Kf6 {[%clk 0:00:08]} 43. Bd6 {[%clk 0:00:36]}  Kg5 {[%clk 0:00:07]} 44. Be7+ {[%clk 0:00:29]}  Kf4 {[%clk 0:00:07]} 45. gxh5 {[%clk 0:00:18]}  gxh5 {[%clk 0:00:08]} 46. Ke2 {[%clk 0:00:11]}  Bxd4 {[%clk 0:00:07]} 47. h4 {[%clk 0:00:09]}  Kg3 {[%clk 0:00:06]} 48. Bd6+ {[%clk 0:00:07]}  Kxh4 {[%clk 0:00:04]} 49. Kd3 {[%clk 0:00:08]}  Bf6 {[%clk 0:00:03]} 50. Ke4 {[%clk 0:00:08]}  Kg5 {[%clk 0:00:03]} 51. f4+ {[%clk 0:00:09]}  Kg6 {[%clk 0:00:03]} 52. Bc5 {[%clk 0:00:08]}  h4 {[%clk 0:00:03]} 53. Bg1 {[%clk 0:00:08]}  Kh5 {[%clk 0:00:03]} 54. Kf3 {[%clk 0:00:07]}  Be7 {[%clk 0:00:04]} 55. Bh2 {[%clk 0:00:08]}  Bd6 {[%clk 0:00:04]} 56. Bg1 {[%clk 0:00:08]}  f6 {[%clk 0:00:03]} 57. Bh2 {[%clk 0:00:08]}  f5 {[%clk 0:00:02]} 58. Bg1 {[%clk 0:00:08]}  Kg6 {[%clk 0:00:03]} 59. Bf2 {[%clk 0:00:05]}  Be7 {[%clk 0:00:02]} 60. Bg1 {[%clk 0:00:03]}  Kf7 {[%clk 0:00:02]} 61. Bh2 {[%clk 0:00:03]}  Ke8 {[%clk 0:00:03]} 62. Ke3 {[%clk 0:00:03]}  Kd7 {[%clk 0:00:03]} 63. Kd4 {[%clk 0:00:03]}  Kc6 {[%clk 0:00:03]} 64. Kc4 {[%clk 0:00:03]}  Kd6 {[%clk 0:00:03]} 65. Kd4 {[%clk 0:00:04]}  h3 {[%clk 0:00:03]} 66. Kc4 {[%clk 0:00:03]}  Bf6 {[%clk 0:00:04]} 67. Kd3 {[%clk 0:00:03]}  Kd5 {[%clk 0:00:04]} 68. Ke3 {[%clk 0:00:03]}  Bh4 {[%clk 0:00:04]} 69. Kf3 {[%clk 0:00:03]}  Kd4 {[%clk 0:00:04]} 70. Bg1+ {[%clk 0:00:01]}  Kd3 {[%clk 0:00:05]} 0-1


[Site "https://www.chess.com"]

[Event "Titled Tuesday Blitz May 2 Early 2023"]
[White "Liu, Casper"]
[Black "Torres Dominguez, David"]
[WhiteFideId "1454153"]
[BlackFideId "2220857"]
[WhiteElo "2221"]
[BlackElo "1999"]
[Result "0-1"]
[Round "02"]
[TimeControl "180+2"]
[Date "2023.05.02"]
[WhiteClock "0:00:51"]
[BlackClock "0:00:01"]

1. e4 {[%clk 0:02:57]}  e5 {[%clk 0:02:59]} 2. Bc4 {[%clk 0:02:55]}  Nc6 {[%clk 0:02:59]} 3. c3 {[%clk 0:02:54]}  Nf6 {[%clk 0:02:59]} 4. d3 {[%clk 0:02:53]}  Bc5 {[%clk 0:02:57]} 5. f4 {[%clk 0:02:54]}  d5 {[%clk 0:02:54]} 6. exd5 {[%clk 0:02:53]}  Nxd5 {[%clk 0:02:53]} 7. fxe5 {[%clk 0:02:50]}  Bxg1 {[%clk 0:02:53]} 8. Rxg1 {[%clk 0:02:49]}  Qh4+ {[%clk 0:02:42]} 9. Kd2 {[%clk 0:02:40]}  Be6 {[%clk 0:02:22]} 10. Qf3 {[%clk 0:02:35]}  O-O-O {[%clk 0:02:19]} 11. d4 {[%clk 0:02:26]}  Nxe5 {[%clk 0:02:13]} 12. dxe5 {[%clk 0:02:25]}  Qxc4 {[%clk 0:02:04]} 13. Na3 {[%clk 0:02:17]}  Qc6 {[%clk 0:00:57]} 14. Ke1 {[%clk 0:01:50]}  Rhe8 {[%clk 0:00:56]} 15. Kf2 {[%clk 0:01:41]}  Qb6+ {[%clk 0:00:53]} 16. Kf1 {[%clk 0:01:35]}  f6 {[%clk 0:00:48]} 17. Nc4 {[%clk 0:01:28]}  Qc6 {[%clk 0:00:45]} 18. Ne3 {[%clk 0:01:26]}  fxe5 {[%clk 0:00:44]} 19. Ke1 {[%clk 0:01:19]}  e4 {[%clk 0:00:40]} 20. Qe2 {[%clk 0:01:16]}  Nxc3 {[%clk 0:00:32]} 21. Qc2 {[%clk 0:01:16]}  Rd3 {[%clk 0:00:22]} 22. bxc3 {[%clk 0:01:13]}  Rxc3 {[%clk 0:00:22]} 23. Qb2 {[%clk 0:01:10]}  Qc5 {[%clk 0:00:08]} 24. Rf1 {[%clk 0:00:57]}  Rxe3+ {[%clk 0:00:08]} 25. Bxe3 {[%clk 0:00:52]}  Qxe3+ {[%clk 0:00:08]} 26. Qe2 {[%clk 0:00:53]}  Qc3+ {[%clk 0:00:08]} 27. Kf2 {[%clk 0:00:54]}  Qc5+ {[%clk 0:00:06]} 28. Qe3 {[%clk 0:00:53]}  Rf8+ {[%clk 0:00:05]} 29. Ke2 {[%clk 0:00:53]}  Bg4+ {[%clk 0:00:05]} 30. Kd2 {[%clk 0:00:53]}  Rd8+ {[%clk 0:00:02]} 31. Qd4 {[%clk 0:00:53]}  Qxd4+ {[%clk 0:00:02]} 32. Kc2 {[%clk 0:00:54]}  Qd3+ {[%clk 0:00:02]} 33. Kb2 {[%clk 0:00:54]}  Be6 {[%clk 0:00:03]} 34. Rac1 {[%clk 0:00:53]}  Qb5+ {[%clk 0:00:04]} 35. Ka1 {[%clk 0:00:53]}  Qe5+ {[%clk 0:00:02]} 36. Kb1 {[%clk 0:00:54]}  Rd2 {[%clk 0:00:02]} 37. Rf8+ {[%clk 0:00:53]}  Kd7 {[%clk 0:00:02]} 38. Rff1 {[%clk 0:00:51]}  Qb2# {[%clk 0:00:01]} 0-1


[Site "https://www.chess.com"]

[Event "Titled Tuesday Blitz May 2 Early 2023"]
[White "Winkels, Marcel"]
[Black "Storn, Justin"]
[WhiteFideId "1003887"]
[BlackFideId "30922720"]
[WhiteElo "1900"]
[BlackElo "2096"]
[Result "1-0"]
[Round "02"]
[TimeControl "180+2"]
[Date "2023.05.02"]
[WhiteClock "0:00:00"]
[BlackClock "0:00:00"]

1. d4 {[%clk 0:00:01]}  d5 {[%clk 0:00:01]} 2. Nc3 {[%clk 0:00:01]}  Nf6 {[%clk 0:00:01]} 3. Bf4 {[%clk 0:00:01]}  c5 {[%clk 0:00:01]} 4. e4 {[%clk 0:00:01]}  dxe4 {[%clk 0:00:01]} 5. dxc5 {[%clk 0:00:01]}  Qa5 {[%clk 0:00:01]} 6. Qd4 {[%clk 0:00:01]}  Nc6 {[%clk 0:00:01]} 7. Bb5 {[%clk 0:00:01]}  Bd7 {[%clk 0:00:01]} 8. Bxc6 {[%clk 0:00:01]}  Bxc6 {[%clk 0:00:01]} 9. O-O-O {[%clk 0:00:01]}  Rd8 {[%clk 0:00:01]} 10. Qc4 {[%clk 0:00:01]}  Rxd1+ {[%clk 0:00:01]} 11. Nxd1 {[%clk 0:00:01]}  Bd5 {[%clk 0:00:01]} 12. Qc3 {[%clk 0:00:01]}  Qxa2 {[%clk 0:00:01]} 13. b3 {[%clk 0:00:01]}  Qa3+ {[%clk 0:00:01]} 14. Kb1 {[%clk 0:00:01]}  e6 {[%clk 0:00:01]} 15. h3 {[%clk 0:00:01]}  Bxc5 {[%clk 0:00:00]} 16. Be5 {[%clk 0:00:01]}  Nd7 {[%clk 0:00:00]} 17. Bxg7 {[%clk 0:00:01]}  Rg8 {[%clk 0:00:00]} 18. Ne2 {[%clk 0:00:01]}  Qb4 {[%clk 0:00:00]} 19. Nf4 {[%clk 0:00:00]}  Qxc3 {[%clk 0:00:00]} 20. Bxc3 {[%clk 0:00:00]}  Bc6 {[%clk 0:00:00]} 21. Rg1 {[%clk 0:00:00]}  Nb6 {[%clk 0:00:00]} 22. Nh5 {[%clk 0:00:00]}  Nd5 {[%clk 0:00:00]} 23. Bb2 {[%clk 0:00:00]}  Rg6 {[%clk 0:00:00]} 24. g4 {[%clk 0:00:00]}  f5 {[%clk 0:00:00]} 25. c4 {[%clk 0:00:00]}  Nb4 {[%clk 0:00:00]} 26. Nf6+ {[%clk 0:00:00]}  Kf7 {[%clk 0:00:00]} 27. g5 {[%clk 0:00:00]}  Nd3 {[%clk 0:00:00]} 28. h4 {[%clk 0:00:00]}  Nxf2 {[%clk 0:00:00]} 29. h5 {[%clk 0:00:00]}  Rg7 {[%clk 0:00:00]} 30. h6 {[%clk 0:00:00]} 1-0


[Site "https://www.chess.com"]

[Event "Titled Tuesday Blitz May 2 Early 2023"]
[White "Da Silva, Lindolfo Luiz"]
[Black "Flis, Pawel"]
[WhiteFideId "2106558"]
[BlackFideId "1112864"]
[WhiteElo "2207"]
[BlackElo "1822"]
[Result "1-0"]
[Round "02"]
[TimeControl "180+2"]
[Date "2023.05.02"]
[WhiteClock "0:00:11"]
[BlackClock "0:00:15"]

1. d4 {[%clk 0:01:26]}  c5 {[%clk 0:02:58]} 2. d5 {[%clk 0:01:25]}  Nf6 {[%clk 0:02:58]} 3. c4 {[%clk 0:01:24]}  b5 {[%clk 0:02:58]} 4. cxb5 {[%clk 0:01:23]}  a6 {[%clk 0:02:58]} 5. bxa6 {[%clk 0:01:24]}  Bxa6 {[%clk 0:02:58]} 6. Nc3 {[%clk 0:01:25]}  g6 {[%clk 0:02:58]} 7. e4 {[%clk 0:01:26]}  Bxf1 {[%clk 0:02:58]} 8. Kxf1 {[%clk 0:01:27]}  d6 {[%clk 0:02:58]} 9. Nf3 {[%clk 0:01:27]}  Bg7 {[%clk 0:02:58]} 10. Kg1 {[%clk 0:01:28]}  O-O {[%clk 0:02:58]} 11. h3 {[%clk 0:01:29]}  Nbd7 {[%clk 0:02:57]} 12. Kh2 {[%clk 0:01:30]}  Qb6 {[%clk 0:02:55]} 13. Re1 {[%clk 0:01:31]}  Rfb8 {[%clk 0:02:54]} 14. Re2 {[%clk 0:01:32]}  Ne8 {[%clk 0:02:50]} 15. Bg5 {[%clk 0:01:32]}  Kf8 {[%clk 0:02:48]} 16. Rc1 {[%clk 0:01:31]}  h6 {[%clk 0:02:48]} 17. Bf4 {[%clk 0:01:31]}  Nc7 {[%clk 0:02:39]} 18. Rcc2 {[%clk 0:01:30]}  Nb5 {[%clk 0:02:37]} 19. Nxb5 {[%clk 0:01:30]}  Qxb5 {[%clk 0:02:38]} 20. b3 {[%clk 0:01:31]}  g5 {[%clk 0:02:20]} 21. Bg3 {[%clk 0:01:24]}  Nb6 {[%clk 0:02:03]} 22. e5 {[%clk 0:01:23]}  Rd8 {[%clk 0:01:56]} 23. e6 {[%clk 0:01:22]}  f5 {[%clk 0:01:49]} 24. Red2 {[%clk 0:00:50]}  f4 {[%clk 0:01:39]} 25. Bxf4 {[%clk 0:00:42]}  gxf4 {[%clk 0:01:39]} 26. Nh4 {[%clk 0:00:42]}  Qe8 {[%clk 0:01:30]} 27. Qg4 {[%clk 0:00:40]}  Rdc8 {[%clk 0:01:11]} 28. Rd3 {[%clk 0:00:21]}  h5 {[%clk 0:00:53]} 29. Qg5 {[%clk 0:00:18]}  Bf6 {[%clk 0:00:43]} 30. Qh6+ {[%clk 0:00:17]}  Bg7 {[%clk 0:00:40]} 31. Qg5 {[%clk 0:00:17]}  Bf6 {[%clk 0:00:39]} 32. Qh6+ {[%clk 0:00:17]}  Kg8 {[%clk 0:00:21]} 33. Ng6 {[%clk 0:00:16]}  Bg7 {[%clk 0:00:20]} 34. Qxh5 {[%clk 0:00:16]}  c4 {[%clk 0:00:18]} 35. Rf3 {[%clk 0:00:14]}  cxb3 {[%clk 0:00:16]} 36. Rxc8 {[%clk 0:00:12]}  Rxc8 {[%clk 0:00:17]} 37. Rxf4 {[%clk 0:00:12]}  Nxd5 {[%clk 0:00:14]} 38. Rf8+ {[%clk 0:00:11]}  Qxf8 {[%clk 0:00:15]} 39. Nxf8 {[%clk 0:00:11]}  Kxf8 {[%clk 0:00:15]} 40. Qf7# {[%clk 0:00:11]} 1-0


[Site "https://www.chess.com"]